Cogmind - Beta 16 @@@ ROGUE MODE // 2026.01.11 @ 14:37:51 Player: Orfs Result: Destroyed by D-53 Grenadier with Mini Grenade Launcher Performance ------------- Evolutions (0) 0 Regions Visited (2) 400 Robots Destroyed (16) 80 Value Destroyed (406) 406 Prototype IDs (0) 0 Alien Tech Used (0) 0 Bonus (0) 0 TOTAL SCORE: 886 Bonus ------- None Cogmind --------- Core Integrity 0/250 Matter 198/350 Energy 250/250 System Corruption 2% Temperature Cool (5) Movement Rolling (135) Ox3 Location -10/Mines Parts ------- > --- POWER (1) -------- Ion Engine > --- PROPULSION (2) --- Wheel Compact Wheel > --- UTILITY (2) ------ Huge Storage Unit Small Matter Pod > --- WEAPON (2) ------- Light Assault Rifle Grenade Launcher > --- INVENTORY (25) --- Light Ion Engine Aluminum Leg Small Storage Unit Medium Storage Unit Particle Gun Beam Cannon Mining Laser Peak State ------------ > --- POWER ------------ Light Nuclear Core > --- PROPULSION ------- Aluminum Leg Aluminum Leg > --- UTILITY ---------- Improved Heat Sink Small Storage Unit > --- WEAPON ----------- Particle Gun Light Assault Rifle > --- INVENTORY -------- Ion Engine Aluminum Leg Wheel Compact Wheel EM Pulse Gun Small Laser [Rating: 12] Favorites ----------- Power Light Nuclear Core Engine Ion Engine Power Core Light Nuclear Core Propulsion Aluminum Leg Leg Aluminum Leg Wheel Compact Wheel Utility Small Storage Unit Device Improved Heat Sink Storage Small Storage Unit Weapon Light Assault Rifle Energy Gun Particle Gun Energy Cannon Beam Cannon Ballistic Gun Light Assault Rifle Launcher Grenade Launcher Build | -11 -10 -10 ------- Run | Yrd Mat Min Slots Evolved . | . . . Power . | . . . Propulsion . | . . . Utility . | . . . Weapon . | . . . Parts Attached 19 | . 9 10 Power 4 | . 3 1 Engine 2 | . 1 1 Core 2 | . 2 . Reactor . | . . . Propulsion 5 | . 2 3 Treads . | . . . Leg 3 | . 2 1 Wheel 2 | . . 2 Hover . | . . . Flight . | . . . Utility 4 | . 2 2 Device 2 | . 2 . Storage 2 | . . 2 Processor . | . . . Hackware . | . . . Protection . | . . . Artifact . | . . . Weapon 6 | . 2 4 Energy Gun 3 | . 2 1 Energy Cannon 1 | . . 1 Ballistic Gun 1 | . . 1 Ballistic Cannon . | . . . Launcher 1 | . . 1 Special Weapon . | . . . Impact Weapon . | . . . Slashing Weapon . | . . . Piercing Weapon . | . . . Special Melee Weapon . | . . . Unidentified Prototypes . | . . . Parts Lost 8 | . 2 6 Power 2 | . 1 1 Propulsion 2 | . . 2 Utility 2 | . 1 1 Weapon 2 | . . 2 Highest Loss Streak 5 | . 2 5 To Critical Strikes . | . . . Average Backups 6 | 6 6 6 Power . | 1 . . Propulsion 2 | 4 3 1 Utility . | . . 1 Weapon 2 | 1 2 2 Tool/Special . | . . . Unused Backups 9 | . 7 2 Power 2 | . 1 1 Propulsion 3 | . 3 . Utility 2 | . 1 1 Weapon 2 | . 2 . Tool/Special . | . . . Average Slot Usage (%) 93 | . 91 95 Engine 7 | . 4 11 Core 6 | . 9 2 Leg 22 | . 28 15 Wheel 4 | . . 11 Device 4 | . 6 2 Storage 17 | . 14 22 Energy Gun 9 | . 11 6 Energy Cannon 1 | . . 3 Ballistic Gun 13 | . 16 7 Launcher 3 | . . 9 Peak Build Rating 12 | 6 12 10 Average Rating 8 | 6 9 7 On Entrance 7 | 6 6 10 Avg Prop Armor Cover (%) . | . . . Naked Turns . | . . . Heaviest Build 90 | 11 15 90 Greatest Support 26 | 20 20 26 Greatest Overweight (x) 3 | . . 3 Average Overweight (x) . | . . 1 Largest Inventory Capacity 25 | 8 8 25 Average Capacity 10 | 8 8 15 Most Carried 8 | 6 8 8 Average Carried 6 | 6 6 6 Final Capacity 25 | 8 8 25 Final Carried 8 | 6 8 7 Class Distribution -------------------- 70% | Mutant 29% | Scavenger-Mutant Dominant Class ---------------- Mutant | -10/Materials Mutant | -10/Mines Resources | -11 -10 -10 ----------- Run | Yrd Mat Min Matter Collected 499 | 200 118 181 Remotely . | . . . Salvage Created 324 | . 169 155 Parts 17 | . 9 8 Haulers Intercepted . | . . . Recyclers Shooed 1 | . 1 . Parts Field Recycled . | . . . Retrieved Matter . | . . . Parts Self-Destructed . | . . . Prevented . | . . . Parts Restored . | . . . Kills | -11 -10 -10 ------- Run | Yrd Mat Min Combat Hostiles Destroyed 14 | . 4 10 Guns 5 | . 4 1 Cannons 1 | . . 1 AOE 8 | . . 8 Classes Destroyed 3 | . 1 2 Worker 2 | . . 2 Swarmer 6 | . . 6 Grunt 8 | . 4 4 Best Kill Streak 6 | . 2 6 Combat Bots Only 5 | . 2 5 Max Kills in Single Turn 2 | . 1 2 Gunslinging . | . . . Exploded 2 | . . 2 Melee . | . . . Uniques/NPCs Destroyed . | . . . Combat | -11 -10 -10 -------- Run | Yrd Mat Min Hostile Shots Fired 96 | . 48 48 Missed 16 | . 10 6 Hits 80 | . 38 42 Projectile 80 | . 38 42 AOE 3 | . . 3 Critical Strikes 3 | . 2 1 Damage Taken 1225 | . 633 592 Core 250 | . 134 116 Absorbed by Shields . | . . . Core Remaining (%) 100 | 100 . . Volleys Fired 57 | . 27 30 Largest 2 | . 2 2 Hottest 125 | . 105 125 Shots Fired 97 | . 54 43 Gun 77 | . 54 23 Cannon 7 | . . 7 Launcher 13 | . . 13 Special . | . . . Kinetic 41 | . 40 1 Thermal 42 | . 14 28 Explosive 13 | . . 13 Electromagnetic 1 | . . 1 Robot Hit Streak 7 | . 7 7 Robot Miss Streak 5 | . 3 5 Penetration Max . | . . . Secondary Targets 2 | . 2 . Max Gunslinging Chain 1 | . 1 . Shots Hit Robots 58 | . 35 23 Core Hits 36 | . 12 24 Critical Kills . | . . . Critical Parts Destroyed . | . . . Critical Strikes 1 | . . 1 Burn 1 | . . 1 Melee Attacks . | . . . Impact . | . . . Slashing . | . . . Piercing . | . . . Sneak Attacks . | . . . Combat Hostiles . | . . . Follow-up Attacks . | . . . Damage Inflicted 1336 | . 405 931 Guns 628 | . 405 223 Cannons 17 | . . 17 Explosions 691 | . . 691 Melee . | . . . Ramming . | . . . Kinetic 286 | . 278 8 Thermal 344 | . 127 217 Explosive 691 | . . 691 Electromagnetic 15 | . . 15 Impact . | . . . Slashing . | . . . Piercing . | . . . Highest Corruption 2 | . 2 2 Average Corruption 1 | . 1 2 Corruption Purged . | . . . Corruption Blocked . | . . . Effects 9 | . 2 7 Message Errors 3 | . 1 2 Matter Fused 4 | . 1 3 Energy Discharges 1 | . . 1 Alerts 1 | . . 1 Overload Shots . | . . . Overflow Damage 17 | . . 17 Projectiles . | . . . Explosions 17 | . . 17 Melee . | . . . Knockbacks . | . . . Impact . | . . . Kinetic . | . . . Secondary . | . . . Self-Inflicted Damage 63 | . . 63 Shots 4 | . . 4 Rammed . | . . . Targets Rammed . | . . . Kicked . | . . . Crushed . | . . . Highest Temperature 467 | . 182 467 Average Temperature 155 | . 46 229 Received Heat Transfer 576 | . 345 231 Effects 8 | . . 8 Shutdowns 3 | . . 3 Interference 4 | . . 4 Damage (minor) 1 | . . 1 Siege Activations . | . . . Martial Activations . | . . . Shielding Activations . | . . . Robots Disrupted . | . . . Combat Hostiles . | . . . Robots Corrupted . | . . . Combat Hostiles . | . . . Parts Fried . | . . . Impact Corruptions . | . . . Robots Melted . | . . . Combat Hostiles . | . . . Parts Melted . | . . . Heat Transferred 865 | . 296 569 Parts Sabotaged . | . . . Parts Stolen . | . . . Parts Stripped . | . . . Power Chain Reactions . | . . . Alert | -11 -10 -10 ------- Run | Yrd Mat Min Maximum Alert Level 1 | . . 1 Low Security (%) 87 | 100 100 69 Level 1 12 | . . 30 Level 2 . | . . . Level 3 . | . . . Level 4 . | . . . Level 5 . | . . . High Security . | . . . Max Security . | . . . Peak Influence 239 | . 41 239 Initial . | . . . Average 59 | . 7 136 Influence Increases 428 | . 103 325 Destroy 0b10 Robot/C 280 | . 80 200 Destroy 0b10 Robot/NC 10 | . . 10 Destroy Leader 60 | . 20 40 Successful Hack 2 | . 2 . Disable Machine 30 | . . 30 Destroy Structure 46 | . 1 45 Influence Decreases 253 | . 103 150 Time Decay 223 | . 93 130 Lost Part 30 | . 10 20 Squads Dispatched . | . . . Investigation . | . . . Extermination . | . . . Reinforcement . | . . . Assault . | . . . Garrison . | . . . Intercept . | . . . Searches Triggered . | . . . Construction Impeded . | . . . Haulers Reinforced . | . . . Active Scanning Responses . | . . . Cargo Convoy Interrupts . | . . . Stealth | -11 -10 -10 --------- Run | Yrd Mat Min Distress Signals . | . . . Communications Jammed . | . . . Distress Signals . | . . . Times Spotted 19 | . 6 13 Peak Tracking Total 5 | . 3 5 Tactical Retreats . | . . . Traps | -11 -10 -10 ------- Run | Yrd Mat Min Traps Triggered 3 | . 3 . Indirectly . | . . . Trap Hack Attempts . | . . . Triggered . | . . . Disarmed . | . . . Reprogrammed . | . . . Reused . | . . . Traps Extracted . | . . . Installed . | . . . Triggered . | . . . Machines | -11 -10 -10 ---------- Run | Yrd Mat Min Machines Disabled 2 | . . 2 Max in Single Turn 1 | . . 1 Machines Repaired . | . . . Machines Dismantled . | . . . Machines Sabotaged . | . . . Overloaded Fab Kills . | . . . Hacking | -11 -10 -10 --------- Run | Yrd Mat Min Machines Accessed 2 | . 2 . Terminals 2 | . 2 . Fabricators . | . . . Repair Stations . | . . . Recycling Units . | . . . Scanalyzers . | . . . Garrison Access . | . . . Total Hacks 4 | . 4 . Successful 2 | . 2 . Failed 2 | . 2 . Catastrophic 1 | . 1 . Database Lockouts . | . . . Manual 2 | . 2 . Terminals 4 | . 4 . Fabricators . | . . . Repair Stations . | . . . Recycling Units . | . . . Scanalyzers . | . . . Garrison Access . | . . . Terminal Hacks 2 | . 2 . Record 2 | . 2 . Fabricator Hacks . | . . . Repair Station Hacks . | . . . Recycling Unit Hacks . | . . . Scanalyzer . | . . . Garrison Access Hacks . | . . . Unauthorized Hacks . | . . . Terminals . | . . . Fabricators . | . . . Repair Stations . | . . . Recycling Units . | . . . Scanalyzers . | . . . Garrison Access . | . . . Data Cores Recovered . | . . . Used . | . . . Hacking Detections 2 | . 2 . Full Trace Events 1 | . 1 . Feedback Events . | . . . Feedback Blocked . | . . . Robot Schematics Acquired . | . . . Robots Built . | . . . Authchips . | . . . Time . | . . . Total Robot Build Rating . | . . . Part Schematics Acquired . | . . . Parts Built . | . . . Authchips . | . . . Time . | . . . Total Part Build Rating . | . . . Part Studies Acquired . | . . . Parts Repaired . | . . . Time . | . . . Parts Recycled . | . . . Recycled Matter . | . . . Retrieved Matter . | . . . Retrieved Components . | . . . Parts Scanalyzed . | . . . Part Schematics Acquired . | . . . Parts Damaged . | . . . Bothacking | -11 -10 -10 ------------ Run | Yrd Mat Min Used RIF Installer . | . . . Robots Hacked . | . . . Non-combat . | . . . Combat . | . . . Robot Hacks Applied . | . . . Relay Couplers Released . | . . . Fabnet Peak Effective % . | . . . Robots Rewired . | . . . Allies Hacked . | . . . Hacks Repelled . | . . . Allies | -11 -10 -10 -------- Run | Yrd Mat Min Total Allies . | . . . Largest Group . | . . . Highest-Rated Group . | . . . Highest-Rated Ally . | . . . Total Orders . | . . . Ally Attacks . | . . . Total Damage . | . . . Kills . | . . . Allies Corrupted . | . . . Allies Melted . | . . . Intel | -11 -10 -10 ------- Run | Yrd Mat Min Active Infowar (turns) 117 | . 70 47 Seismic 117 | . 70 47 Robot Analysis Total . | . . . Derelict Logs Recovered 1 | . . 1 Drone Launches . | . . . Drone Recoveries . | . . . Exploration | -11 -10 -10 ------------- Run | Yrd Mat Min Turns Passed 715 | 3 423 289 Spaces Moved 416 | 3 266 147 Core . | . . . Treads . | . . . Legs 329 | 3 266 60 Wheels 87 | . . 87 Hover . | . . . Flight . | . . . Fastest Speed 100 | 120 120 100 Average Speed 125 | 120 120 134 Slowest Speed 190 | 120 120 190 Overloaded Moves . | . . . Propulsion Burnouts . | . . . Robots Hopped . | . . . Potential Cave-ins 1 | . . 1 Cave-ins Triggered . | . . . Exploration Rate (%) 28 | 2 43 41 Regions Visited 2 Branch Regions 1 Pre-discovered Areas 1 | . . 1 Known Exits Taken . | . . . Unknown Exits Taken 2 | 1 1 . Scrap Searched 1 | . . 1 Spaces Dug 22 | . . 22 Terrain Destroyed 67 | . . 67 Melee . | . . . Projectile . | . . . AOE 67 | . . 67 Terrain Rammed . | . . . Walls Destroyed . | . . . Machines Disabled . | . . . Actions | -11 -10 -10 --------- Run | Yrd Mat Min Total 519 | 2 323 194 Wait 6 | . 5 1 Move 414 | 2 265 147 Hop . | . . . Pick Up 12 | . 9 3 Fast Attach 3 | . 2 1 Attach 11 | . 5 6 Detach 2 | . 1 1 Swap 7 | . 2 5 Drop 7 | . 7 . Fire 57 | . 27 30 Melee . | . . . Ram . | . . . Kick . | . . . Crush . | . . . Escape Stasis . | . . . Rewire . | . . . Trap . | . . . Miscellaneous . | . . . Route ------- -11/Scrapyard -10/Materials (discovered 2 exits: [*Mat] / [*Min]) -10/Mines (discovered 2 exits: [*Mat x2]) History --------- Turn | Location | Event 1 | -11/Scrapyard | Discovered new exit (range 1) 4 | -11/Scrapyard | Entered Materials 185 | -10/Materials | Discovered new exit (range 4) 318 | -10/Materials | Core integrity fell below 50% 403 | -10/Materials | Discovered new exit (range 12) 427 | -10/Materials | Entered Mines 505 | -10/Mines | Lost 5 parts (1p1n1u2w) 537 | -10/Mines | Discovered new exit (range 10) 540 | -10/Mines | Core integrity fell below 20% 602 | -10/Mines | Learned location of Zion (-6) 634 | -10/Mines | Discovered new exit (range 4) 696 | -10/Mines | Assembled infested the area 701 | -10/Mines | Assisted by a Guerilla fighting off Assembled 716 | -10/Mines | Destroyed by D-53 Grenadier with Mini Grenade Launcher Last Messages --------------- 00634_ EXIT=FOUND 00635_ The unstable cave ceiling collapses. 00635_ U-05 Engineer lays Concrete. 00647_ 58/:Y=#3OKTNQ&84FSWCTN 00696_ ALERT: Infestation in the mines, dispatching Demolisher response squad. 00701_ A derelict emerges from the shadows: "You need to get out of here! I've been tracking a group of Assembled to figure out where they're coming from, and they're closing on this area, come on!" 00712_ DY-Z52(h): "I'll hold them off! Go on ahead or try to find another way!" 00712_ C-45 Heavy ARC suffers critical hit (Destroy). 00713_ C-45 Heavy ARC bursts open, deploying its payload. 00713_ D-53 Grenadier unfolds itself. 00714_ System corrupted: Matter fused (-8). 00714_ HV Slug penetrates Earth. 00714_ DY-Z52(h) destroyed. 00715_ T-07 Excavator destroyed. 00715_ K-01 Serf destroyed. Map ----- +----------------------------------------------------+ | ???????# #####??############ ## ## | | ???????# """ #?????????????##### # ## | | ???????# """ #????????????### ## ## | | ???????# """ #????????????# | | ???????# #????????????## # | | ???????########?????????????# | | ????????????????????????????# | | ????????????????????????????# ### | | ???######??????????????????## ##? | | ??## ##????????????????## ##?? | | ?## #?????####??????## ##??? | | ?# #?????# ##?????# ###???? | | ?# #?????# ####### ## #?????? | | ??# #?????# ### #?????? | | ???# #?????## ###### #### #?????? | | ????# ##???## #???## ### #?????? | | ????## ##### #### # #?# ######?????? | | ?????# ## #? ?????????? | | ?????## # ## < ????????? | | ??????### ## ## #???????? | | ????????### # %d ## #???????? | | ??????????## # d ##### #???????? | | ???????????# # #???########???????? | | ???????????# ???????????????????? | | ???????????# #????????????????????? | | ???????????# ## @ #?????????????????????? | | ???????????# ## #?????????????????????? | | ????????#### # ##????????????????????? | | ????????# # ##???????????????????? | | ????????# ### ##??????????????????? | | ????????# #?# #??????????????????? | | ???????## ### #??????????????????? | | ??????## ## #??????????????????? | | ??????# ###?????????????????? | | ??????# #???????????????? | | ??????## %= a #???????????????? | | ???????# |* #####???????????????? | | ??????# ##???????????????????? | | ?????# ###????????????????????? | | ????# ##??????????????????????? | | ????# #### a##???????????????????????? | | ????## #???# #????????????????????????? | | ?????###???? #????????????????????????? | | ???????????? ????????????????????????? | | ???????????? ???????????????????????? | | ???????????? ??????????????????????? | | ???????????? ??????????????????????? | | ???????????? #####?????????????????????? | | ???????????? ##?????????????????????????? | | ????????????##???????????????????????????? | +----------------------------------------------------+ Best States ------------- Heat Dissipation 39 Energy Generation 14 Energy Capacity 250 Matter Stores 300 Matter Capacity 350 Sight Range 16 Terrain Scan Density 10 Evasion (%) 55 Item Schematics ----------------- None Robot Schematics ------------------ None Fabricated ------------ Nothing Repaired ---------- Nothing Studied --------- None Alien Tech Used ----------------- None Achievements -------------- DATA ERROR: Steam Global Achievement% Organ Harvest There's More Where That Came From Challenges ------------ None Game ------ Seed SigixModifiedChargecaster Manual? 0 Play Time 00:12:24 Cumulative 13.7 hours Start 2026.01.11 @ 14:24:41 End 2026.01.11 @ 14:37:51 Sessions 1 Manual Loads 0 Difficulty Rogue Special Mode None Game No. 37 Rogue 37 Adventurer 0 Explorer 0 Win Type - Total 0 Types 0/0/0/0/0/0/0/0/0/0 Lore% 12 Gallery% 21 Achievement% 11 Wizard Run 0 Options --------- Layout 1 ASCII 0 Keyboard 0 Movement Numpad Keybinds 0 Fullscreen 2 Font 20/SmallcapsGlow Map View 64x42 Zoom Use 0% Tactical HUD 1 Map Filters NONE Filters NONE Steam 1 RUN: 89a99167-4293-4cf7-a636-3f1f6334d067